fUST/lending_fUST_20241025
["ID","MTS","AMOUNT","RATE_DAILY","PERIOD"]
[340780188,1729802609410,-508.2161237,0.00013698,2]
[340780189,1729802609433,-151.0,0.00013698,2]
[340780190,1729802609456,-151.0,0.00013698,2]
[340780191,1729802609479,-500.0,0.00013698,2]
[340780192,1729802609502,-574.09,0.00013698,2]
[340780193,1729802609528,-789.27,0.00013698,2]
[340780194,1729802609553,-500.0,0.00013698,2]
[340780195,1729802609577,-546.79,0.00013698,2]
[340780196,1729802609602,-1780.5,0.00013698,2]
[340780197,1729802609627,-502.03310142,0.00013698,2]
[340780198,1729802609652,-913.02,0.00013698,2]
[340780199,1729802609677,-500.0,0.00013698,2]
[340780200,1729802609704,-500.0,0.00013698,2]
[340780201,1729802609729,-202.880131,0.00013698,2]
[340780202,1729802609753,-202.880131,0.00013698,2]
[340780203,1729802609779,-202.880131,0.00013698,2]
[340780204,1729802609804,-202.880131,0.00013698,2]
[340780205,1729802609831,-202.880131,0.00013698,2]
[340780206,1729802609855,-202.880131,0.00013698,2]
[340780207,1729802609880,-202.880131,0.00013698,2]
[340780208,1729802609906,-202.880131,0.00013698,2]
[340780209,1729802609934,-202.880131,0.00013698,2]
[340780210,1729802609956,-202.880131,0.00013698,2]
[340780211,1729802609981,-202.880131,0.00013698,2]
[340780212,1729802610004,-202.880131,0.00013698,2]
[340780213,1729802610041,-202.880131,0.00013698,2]
[340780214,1729802610072,-202.880131,0.00013698,2]
[340780215,1729802610099,-479.97829575,0.00013698,2]
[340780216,1729802687700,264.0,0.0001494,60]
[340780304,1729803042980,-300.0,0.00012017,2]
[340780305,1729803042991,-266.42676448,0.00012017,2]
[340780310,1729803043239,-33.57323552,0.00012017,2]
[340780312,1729803043297,-18066.7131179,0.00012018,2]
[340780313,1729803043387,-943.75273886,0.00012525,2]
[340780314,1729803043481,-400.082692,0.00012684,2]
[340780315,1729803043576,-400.082692,0.00012687,2]
[340780316,1729803043682,-400.082692,0.0001269,2]
[340780317,1729803043777,-400.082692,0.00012694,2]
[340780318,1729803043909,-400.082692,0.00012697,2]
[340780319,1729803044012,-400.082692,0.000127,2]
[340780320,1729803044069,-400.082692,0.00012704,2]
[340780321,1729803044117,-400.082692,0.00012707,2]
[340780322,1729803044129,-400.082692,0.0001271,2]
[340780323,1729803044140,-400.082692,0.00012714,2]
[340780324,1729803044152,-400.082692,0.00012717,2]
[340780325,1729803044164,-400.082692,0.0001272,2]
[340780326,1729803044176,-400.082692,0.00012724,2]
[340780327,1729803044188,-400.082692,0.00012727,2]
[340780328,1729803044199,-400.082692,0.0001273,2]
[340780329,1729803044210,-400.082692,0.00012734,2]
[340780330,1729803044221,-400.082692,0.00012737,2]
[340780331,1729803044234,-400.082692,0.0001274,2]
[340780332,1729803044245,-400.082692,0.00012744,2]
[340780333,1729803044256,-400.082692,0.00012747,2]
[340780334,1729803044268,-420.0,0.00013191,2]
[340780335,1729803044279,-420.0,0.00013218,2]
[340780336,1729803044290,-1000.0,0.0001358,2]
[340780337,1729803044301,-1012.84180073,0.000136,2]
[340780338,1729803044313,-420.53722035,0.000136,2]
[340780340,1729803044323,-502.33189578,0.00013673,2]
[340780342,1729803044335,-500.0,0.00013673,2]
[340780343,1729803044346,-500.0,0.00013673,2]
[340780344,1729803044356,-500.0,0.00013673,2]
[340780345,1729803044367,-500.94782807,0.00013673,2]
[340780346,1729803044378,-104902.769229,0.00013688,2]
[340780347,1729803044389,-344842.645719,0.00013688,2]
[340780348,1729803044400,-12144.42115346,0.00013697,2]
[340780349,1729803044411,-500.0,0.00013698,2]
[340780350,1729803044422,-500.0,0.00013698,2]
[340780351,1729803044432,-600.90232501,0.00013698,2]
[340780352,1729803044443,-500.0,0.00013698,2]
[340780353,1729803044454,-1044.82,0.00013698,2]
[340780354,1729803044464,-500.0,0.00013698,2]
[340780355,1729803044474,-1391.2,0.00013698,2]
[340780356,1729803044485,-300.89049391,0.00013698,2]
[340780357,1729803044494,-500.0,0.00013698,2]
[340780358,1729803044773,-500.0,0.00013698,2]
[340780359,1729803044789,-741.75,0.00013698,2]
[340780360,1729803044800,-1667.15,0.00013698,2]
[340780361,1729803044810,-676.05,0.00013698,2]
[340780362,1729803044820,-804.66,0.00013698,2]
[340780363,1729803044832,-500.0,0.00013698,2]
[340780364,1729803044840,-500.0,0.00013698,2]
[340780365,1729803044850,-1216.62,0.00013698,2]
[340780366,1729803044859,-500.0,0.00013698,2]
[340780367,1729803044868,-500.0,0.00013698,2]
[340780368,1729803044878,-862.32,0.00013698,2]
[340780369,1729803044887,-500.0,0.00013698,2]
[340780370,1729803044896,-881.72,0.00013698,2]
[340780371,1729803044905,-500.0,0.00013698,2]
[340780372,1729803044914,-517.36833883,0.00013698,2]
[340780373,1729803044924,-500.0,0.00013698,2]
[340780374,1729803044933,-500.0,0.00013698,2]
[340780375,1729803044942,-500.0,0.00013698,2]
[340780376,1729803044952,-500.0,0.00013698,2]
[340780377,1729803044962,-952.23,0.00013698,2]
[340780378,1729803044971,-500.0,0.00013698,2]
[340780379,1729803044981,-504.01211603,0.00013698,2]
[340780380,1729803044990,-500.0,0.00013698,2]
[340780381,1729803045000,-500.0,0.00013698,2]
[340780382,1729803045011,-706.99,0.00013698,2]
[340780383,1729803045022,-500.0,0.00013698,2]
[340780384,1729803045032,-500.0,0.00013698,2]
[340780385,1729803045041,-500.0,0.00013698,2]
[340780386,1729803045051,-500.0,0.00013698,2]
[340780387,1729803045061,-718.32,0.00013698,2]
[340780388,1729803045071,-500.0,0.00013698,2]
[340780389,1729803045082,-500.0,0.00013698,2]
[340780390,1729803045091,-536.97410494,0.00013698,2]
[340780391,1729803045101,-500.0,0.00013698,2]
[340780392,1729803045110,-360.06525558,0.00013698,2]
[340780393,1729803045119,-864.65,0.00013698,2]
[340780394,1729803045129,-500.0,0.00013698,2]
[340780395,1729803045139,-500.0,0.00013698,2]
[340780396,1729803045149,-500.0,0.00013698,2]
[340780397,1729803045159,-1619.39,0.00013698,2]
[340780398,1729803045168,-674.69,0.00013698,2]
[340780399,1729803045178,-500.0,0.00013698,2]
[340780400,1729803045187,-500.0,0.00013698,2]
[340780401,1729803045196,-500.0,0.00013698,2]
[340780402,1729803045206,-500.0,0.00013698,2]
[340780403,1729803045215,-500.0,0.00013698,2]
[340780404,1729803045224,-500.0,0.00013698,2]
[340780405,1729803045234,-1005.55,0.00013698,2]
[340780406,1729803045243,-500.0,0.00013698,2]
[340780407,1729803045252,-826.45,0.00013698,2]
[340780408,1729803045261,-151.0,0.00013698,2]
[340780409,1729803045271,-151.0,0.00013698,2]
[340780410,1729803045281,-151.0,0.00013698,2]
[340780411,1729803045290,-151.0,0.00013698,2]
[340780412,1729803045300,-151.0,0.00013698,2]
[340780413,1729803045310,-151.0,0.00013698,2]
[340780414,1729803045319,-171.107833,0.00013698,2]
[340780415,1729803045330,-248.79080949,0.00013698,2]
[340780416,1729803045341,-500.0,0.00013698,2]
[340780417,1729803045351,-1354.63,0.00013698,2]
[340780418,1729803045360,-500.0,0.00013698,2]
[340780419,1729803045371,-500.0,0.00013698,2]
[340780420,1729803045379,-500.0,0.00013698,2]
[340780421,1729803045389,-500.0,0.00013698,2]
[340780423,1729803045398,-500.0,0.00013698,2]
[340780425,1729803045408,-610.79,0.00013698,2]
[340780427,1729803045418,-400.40102105,0.00013698,2]
[340780429,1729803045429,-661.98,0.00013698,2]
[340780430,1729803045440,-500.0,0.00013698,2]
[340780431,1729803045452,-597.51869157,0.00013698,2]
[340780432,1729803045463,-538.31,0.00013698,2]
[340780433,1729803045473,-1066.44,0.00013698,2]
[340780434,1729803045483,-504.85714748,0.00013698,2]
[340780435,1729803045492,-942.0,0.00013698,2]
[340780436,1729803045501,-1382.9,0.00013698,2]
[340780437,1729803045511,-583.58,0.00013698,2]
[340780438,1729803045521,-500.0,0.00013698,2]
[340780439,1729803045531,-728.93,0.00013698,2]
[340780440,1729803045542,-500.0,0.00013698,2]
[340780441,1729803045552,-940.55,0.00013698,2]
[340780442,1729803045563,-500.0,0.00013698,2]
[340780443,1729803045573,-500.0,0.00013698,2]
[340780445,1729803045583,-500.0,0.00013698,2]
[340780446,1729803045593,-500.0,0.00013698,2]
[340780447,1729803045602,-250.0,0.00013698,2]
[340780448,1729803045612,-500.0,0.00013698,2]
[340780449,1729803045621,-500.0,0.00013698,2]
[340780451,1729803045630,-500.0,0.00013698,2]
[340780452,1729803045640,-500.0,0.00013698,2]
[340780454,1729803045650,-500.0,0.00013698,2]
[340780456,1729803045662,-500.0,0.00013698,2]
[340780457,1729803045673,-500.0,0.00013698,2]
[340780458,1729803045683,-500.0,0.00013698,2]
[340780459,1729803045694,-500.0,0.00013698,2]
[340780460,1729803045705,-531.8270557,0.00013698,2]
[340780461,1729803045715,-500.0,0.00013698,2]
[340780462,1729803045726,-500.0,0.00013698,2]
[340780463,1729803045737,-200.0,0.00013698,2]
[340780464,1729803045747,-500.0,0.00013698,2]
[340780465,1729803045759,-500.0,0.00013698,2]
[340780466,1729803045769,-500.0,0.00013698,2]
[340780467,1729803045779,-500.0,0.00013698,2]
[340780468,1729803045788,-500.0,0.00013698,2]
[340780469,1729803045799,-500.0,0.00013698,2]
[340780470,1729803045809,-500.0,0.00013698,2]
[340780471,1729803045818,-540.9298968,0.00013698,2]
[340780472,1729803045829,-500.0,0.00013698,2]
[340780473,1729803045839,-500.0,0.00013698,2]
[340780474,1729803045849,-500.0,0.00013698,2]
[340780475,1729803045859,-500.0,0.00013698,2]
[340780476,1729803045870,-500.0,0.00013698,2]
[340780477,1729803045881,-500.0,0.00013698,2]
[340780478,1729803045891,-500.0,0.00013698,2]
[340780479,1729803045901,-500.0,0.00013698,2]
[340780480,1729803045912,-500.0,0.00013698,2]
[340780481,1729803045923,-500.0,0.00013698,2]
[340780482,1729803045933,-500.0,0.00013698,2]
[340780483,1729803045944,-641.23269881,0.00013698,2]
[340780484,1729803045955,-500.0,0.00013698,2]
[340780485,1729803045965,-500.0,0.00013698,2]
[340780486,1729803045977,-1673.51,0.00013698,2]
[340780487,1729803045987,-500.0,0.00013698,2]
[340780488,1729803045997,-912.54,0.00013698,2]
[340780489,1729803046009,-500.0,0.00013698,2]
[340780490,1729803046020,-852.52,0.00013698,2]
[340780491,1729803046030,-561.44923914,0.00013698,2]
[340780492,1729803046040,-232.11165422,0.00013698,2]
[340780493,1729803046051,-500.0,0.00013698,2]
[340780494,1729803046060,-1749.2,0.00013698,2]
[340780495,1729803046070,-323.313192,0.00013698,2]
[340780496,1729803046083,-419.38174921,0.00013698,2]
[340780497,1729803046093,-323.313194,0.00013698,2]
[340780498,1729803046102,-500.0,0.00013698,2]
[340780499,1729803046112,-500.0,0.00013698,2]
[340780500,1729803046122,-500.0,0.00013698,2]
[340780501,1729803046132,-500.0,0.00013698,2]
[340780502,1729803046143,-500.0,0.00013698,2]
[340780503,1729803046154,-576.40457011,0.00013698,2]
[340780504,1729803046166,-1471.57,0.00013698,2]
[340780505,1729803046179,-500.0,0.00013698,2]
[340780506,1729803046188,-565.86678767,0.00013698,2]
[340780507,1729803046199,-1005.05,0.00013698,2]
[340780508,1729803046209,-500.0,0.00013698,2]
[340780509,1729803046218,-500.0,0.00013698,2]
[340780510,1729803046228,-888.66,0.00013698,2]
[340780511,1729803046238,-1212.61,0.00013698,2]
[340780512,1729803046248,-500.0,0.00013698,2]
[340780513,1729803046257,-623.16,0.00013698,2]
[340780514,1729803046268,-903.56,0.00013698,2]
[340780515,1729803046279,-500.0,0.00013698,2]
[340780516,1729803046289,-1762.67,0.00013698,2]
[340780517,1729803046300,-500.0,0.00013698,2]
[340780518,1729803046313,-500.0,0.00013698,2]
[340780519,1729803046324,-841.71,0.00013698,2]
[340780520,1729803046335,-2900.85,0.00013698,2]
[340780521,1729803046345,-1802.48,0.00013698,2]
[340780522,1729803046354,-505.36,0.00013698,2]
[340780523,1729803046364,-500.0,0.00013698,2]
[340780524,1729803046374,-1744.23,0.00013698,2]
[340780525,1729803046383,-500.0,0.00013698,2]
[340780526,1729803046392,-500.0,0.00013698,2]
[340780527,1729803046402,-3527.4,0.00013698,2]
[340780528,1729803046411,-500.0,0.00013698,2]
[340780529,1729803046421,-500.0,0.00013698,2]
[340780530,1729803046430,-500.0,0.00013698,2]
[340780531,1729803046439,-1572.54,0.00013698,2]
[340780532,1729803046448,-3029.11,0.00013698,2]
[340780533,1729803046457,-500.0,0.00013698,2]
[340780534,1729803046467,-470.17858247,0.00013698,2]
[340780535,1729803046476,-1315.11,0.00013698,2]
[340780536,1729803046485,-500.0,0.00013698,2]
[340780537,1729803046495,-756.39,0.00013698,2]
[340780538,1729803046504,-500.0,0.00013698,2]
[340780539,1729803046513,-500.0,0.00013698,2]
[340780540,1729803046522,-256.43008793,0.00013698,2]
[340780541,1729803046531,-387.25919906,0.00013698,2]
[340780542,1729803046540,-183.82537244,0.00013698,2]
[340780543,1729803046551,-1552.93,0.00013698,2]
[340780544,1729803046560,-500.0,0.00013698,2]
[340780545,1729803046569,-500.0,0.00013698,2]
[340780546,1729803046580,-550.17,0.00013698,2]
[340780547,1729803046590,-876.2,0.00013698,2]
[340780548,1729803046600,-342.84866657,0.00013698,2]
[340780549,1729803046610,-500.0,0.00013698,2]
[340780550,1729803046622,-1706.31,0.00013698,2]
[340780551,1729803046633,-874.97,0.00013698,2]
[340780552,1729803046643,-811.13,0.00013698,2]
[340780553,1729803046654,-626.63,0.00013698,2]
[340780554,1729803046664,-500.0,0.00013698,2]
[340780555,1729803046677,-944.26,0.00013698,2]
[340780556,1729803046687,-1050.75,0.00013698,2]
[340780557,1729803046698,-500.0,0.00013698,2]
[340780558,1729803046709,-764.55,0.00013698,2]
[340780559,1729803046721,-830.77,0.00013698,2]
[340780560,1729803046732,-888.89,0.00013698,2]
[340780561,1729803046743,-1051.36,0.00013698,2]
[340780562,1729803046756,-2177.85,0.00013698,2]
[340780563,1729803046766,-151.0,0.00013698,2]
[340780564,1729803046776,-151.0,0.00013698,2]
[340780565,1729803046787,-151.0,0.00013698,2]
[340780566,1729803046798,-1156.49,0.00013698,2]
[340780567,1729803046809,-500.0,0.00013698,2]
[340780568,1729803046819,-500.0,0.00013698,2]
[340780569,1729803046830,-500.0,0.00013698,2]
[340780570,1729803046840,-500.0,0.00013698,2]
[340780571,1729803046850,-500.0,0.00013698,2]
[340780572,1729803046859,-500.0,0.00013698,2]
[340780573,1729803046870,-500.0,0.00013698,2]
[340780574,1729803046879,-500.0,0.00013698,2]
[340780575,1729803046890,-500.0,0.00013698,2]
[340780576,1729803046900,-500.0,0.00013698,2]
[340780577,1729803046910,-1476.39,0.00013698,2]
[340780578,1729803046921,-950.08,0.00013698,2]
[340780579,1729803046931,-500.0,0.00013698,2]
[340780580,1729803046942,-500.0,0.00013698,2]
[340780581,1729803046951,-555.15,0.00013698,2]
[340780582,1729803046962,-494.21347529,0.00013698,2]
[340780583,1729803046972,-500.0,0.00013698,2]
[340780584,1729803046983,-1237.92,0.00013698,2]
[340780585,1729803046994,-500.0,0.00013698,2]
[340780586,1729803047007,-2033.9,0.00013698,2]
[340780587,1729803047019,-991.17,0.00013698,2]
[340780588,1729803047032,-500.0,0.00013698,2]
[340780589,1729803047041,-899.98,0.00013698,2]
[340780590,1729803047050,-1092.91,0.00013698,2]
[340780591,1729803047061,-597.52,0.00013698,2]
[340780592,1729803047070,-151.0,0.00013698,2]
[340780593,1729803047080,-500.0,0.00013698,2]
[340780594,1729803047093,-151.0,0.00013698,2]
[340780595,1729803047103,-151.0,0.00013698,2]
[340780596,1729803047115,-569.68960701,0.00013698,2]
[340780597,1729803047126,-901.98,0.00013698,2]
[340780598,1729803047137,-500.0,0.00013698,2]
[340780599,1729803047149,-500.0,0.00013698,2]
[340780600,1729803047159,-500.0,0.00013698,2]
[340780601,1729803047168,-500.0,0.00013698,2]
[340780602,1729803047179,-1474.04,0.00013698,2]
[340780603,1729803047189,-500.0,0.00013698,2]
[340780604,1729803047201,-151.0,0.00013698,2]
[340780605,1729803047211,-151.0,0.00013698,2]
[340780606,1729803047220,-608.46,0.00013698,2]
[340780607,1729803047232,-151.0,0.00013698,2]
[340780608,1729803047241,-151.0,0.00013698,2]
[340780609,1729803047251,-191.863052,0.00013698,2]
[340780610,1729803047261,-803.06,0.00013698,2]
[340780611,1729803047272,-500.0,0.00013698,2]
[340780612,1729803047282,-2319.61,0.00013698,2]
[340780613,1729803047292,-151.0,0.00013698,2]
[340780614,1729803047303,-151.0,0.00013698,2]
[340780615,1729803047315,-151.0,0.00013698,2]
[340780616,1729803047326,-500.0,0.00013698,2]
[340780617,1729803047338,-731.61,0.00013698,2]
[340780618,1729803047347,-151.0,0.00013698,2]
[340780619,1729803047357,-151.0,0.00013698,2]
[340780620,1729803047366,-167.346588,0.00013698,2]
[340780621,1729803047378,-995.8,0.00013698,2]
[340780622,1729803047390,-817.13,0.00013698,2]
[340780623,1729803047401,-500.0,0.00013698,2]
[340780624,1729803047412,-1249.15,0.00013698,2]
[340780625,1729803047423,-500.0,0.00013698,2]
[340780626,1729803047433,-500.0,0.00013698,2]
[340780627,1729803047442,-2306.53,0.00013698,2]
[340780628,1729803047453,-714.66,0.00013698,2]
[340780629,1729803047462,-500.0,0.00013698,2]
[340780630,1729803047472,-500.0,0.00013698,2]
[340780631,1729803047483,-500.0,0.00013698,2]
[340780632,1729803047492,-1175.17,0.00013698,2]
[340780633,1729803047501,-500.0,0.00013698,2]
[340780634,1729803047511,-1490.09,0.00013698,2]
[340780635,1729803047520,-1078.47,0.00013698,2]
[340780636,1729803047530,-1711.13,0.00013698,2]
[340780637,1729803047540,-1294.91,0.00013698,2]
[340780638,1729803047549,-500.0,0.00013698,2]
[340780639,1729803047558,-771.21,0.00013698,2]
[340780640,1729803047568,-916.42,0.00013698,2]
[340780641,1729803047578,-1019.46,0.00013698,2]
[340780642,1729803047587,-612.0,0.00013698,2]
[340780643,1729803047597,-151.0,0.00013698,2]
[340780644,1729803047607,-509.03214919,0.00013698,2]
[340780645,1729803047616,-151.0,0.00013698,2]
[340780646,1729803047626,-4435.66,0.00013698,2]
[340780647,1729803047635,-1159.35,0.00013698,2]
[340780648,1729803047645,-151.0,0.00013698,2]
[340780649,1729803047654,-151.0,0.00013698,2]
[340780650,1729803047664,-500.0,0.00013698,2]
[340780651,1729803047674,-1471.52,0.00013698,2]
[340780652,1729803047683,-1455.74,0.00013698,2]
[340780653,1729803047693,-3136.98593461,0.00013698,2]
[340780654,1729803048893,-500.0,0.00013673,2]
[340780655,1729803048903,-1504.23406539,0.00013698,2]
[340780656,1729803048913,-151.0,0.00013698,2]
[340780657,1729803048923,-500.0,0.00013698,2]
[340780658,1729803048933,-151.0,0.00013698,2]
[340780659,1729803048943,-588.41,0.00013698,2]
[340780660,1729803048953,-151.0,0.00013698,2]
[340780661,1729803048963,-500.0,0.00013698,2]
[340780662,1729803048973,-1320.56,0.00013698,2]
[340780663,1729803048983,-500.0,0.00013698,2]
[340780664,1729803048993,-608.54703056,0.00013698,2]
[340780665,1729803049003,-2493.02,0.00013698,2]
[340780666,1729803049016,-510.79317988,0.00013698,2]
[340780667,1729803049027,-493.95917967,0.00013698,2]
[340780668,1729803049036,-514.21,0.00013698,2]
[340780669,1729803049046,-312.37343536,0.00013698,2]
[340780670,1729803049057,-500.0,0.00013698,2]
[340780671,1729803049067,-500.0,0.00013698,2]
[340780672,1729803049077,-500.0,0.00013698,2]
[340780673,1729803049089,-151.0,0.00013698,2]
[340780674,1729803049098,-151.0,0.00013698,2]
[340780675,1729803049107,-151.0,0.00013698,2]
[340780676,1729803049117,-151.0,0.00013698,2]
[340780677,1729803049127,-500.0,0.00013698,2]
[340780678,1729803049138,-115.46232388,0.00013698,2]
[340780679,1729803049151,-35.53767612,0.00013698,2]
[340780680,1729803049161,-151.0,0.00013698,2]
[340780681,1729803049171,-1924.61,0.00013698,2]
[340780682,1729803049181,-546.40814081,0.00013698,2]
[340780683,1729803049192,-939.61,0.00013698,2]
[340780684,1729803049203,-151.0,0.00013698,2]
[340780685,1729803049212,-151.0,0.00013698,2]
[340780686,1729803049222,-151.0,0.00013698,2]
[340780687,1729803049232,-151.0,0.00013698,2]
[340780688,1729803049242,-270.630029,0.00013698,2]
[340780689,1729803049252,-549.31,0.00013698,2]
[340780690,1729803049262,-500.0,0.00013698,2]
[340780691,1729803049271,-1481.89415407,0.00013698,2]
[340780693,1729803735754,251.0,0.000198,60]
[340780750,1729804236392,-183.50754537,0.00013588,2]
[340780751,1729804236403,-1000.0,0.00013598,2]
[340780752,1729804236415,-2500.0,0.000136,2]
[340780753,1729804236426,-3831.78036929,0.00013628,2]
[340780754,1729804236436,-217.0,0.0001363,2]
[340780755,1729804236446,-300.0,0.00013672,2]
[340780756,1729804236457,-300.0,0.00013672,2]
[340780757,1729804236468,-500.0,0.00013673,2]
[340780758,1729804236480,-450.40534038,0.00013673,2]
[340780759,1729804236492,-508.85776091,0.00013673,2]
[340780760,1729804236503,-222.77279519,0.00013673,2]
[340780761,1729804236514,-500.0,0.00013673,2]
[340780762,1729804236535,-501.79543118,0.00013673,2]
[340780763,1729804236547,-500.0,0.00013673,2]
[340780764,1729804236557,-500.0,0.00013673,2]
[340780765,1729804236567,-416.22779732,0.00013688,2]
[340780766,1729804236577,-20784.42964905,0.00013688,2]
[340780805,1729804240068,-100154.74958595,0.00013688,2]
[340780806,1729804240077,-249142.59226922,0.00013688,2]
[340780807,1729804240126,-42177.95820378,0.00013688,2]
[340780808,1729804240136,-3058.40777289,0.00013697,2]
[340780809,1729804240148,-500.0,0.00013698,2]
[340780810,1729804240159,-500.0,0.00013698,2]
[340780811,1729804240169,-500.0,0.00013698,2]
[340780812,1729804240179,-328.64435013,0.00013698,2]
[340780813,1729804240189,-500.0,0.00013698,2]
[340780814,1729804240199,-500.0,0.00013698,2]
[340780815,1729804240209,-460.37018627,0.00013698,2]
[340780816,1729804240223,-500.0,0.00013698,2]
[340780817,1729804240234,-500.0,0.00013698,2]
[340780818,1729804240243,-500.0,0.00013698,2]
[340780819,1729804240254,-500.0,0.00013698,2]
[340780820,1729804240263,-500.0,0.00013698,2]
[340780821,1729804240273,-500.0,0.00013698,2]
[340780822,1729804240283,-500.0,0.00013698,2]
[340780823,1729804240293,-500.0,0.00013698,2]
[340780824,1729804240303,-500.0,0.00013698,2]
[340780825,1729804240313,-500.0,0.00013698,2]
[340780826,1729804240324,-500.0,0.00013698,2]
[340780827,1729804240334,-500.0,0.00013698,2]
[340780828,1729804240344,-500.0,0.00013698,2]
[340780829,1729804240354,-500.0,0.00013698,2]
[340780830,1729804240364,-500.0,0.00013698,2]
[340780831,1729804240374,-500.0,0.00013698,2]
[340780832,1729804240384,-500.0,0.00013698,2]
[340780833,1729804240397,-500.0,0.00013698,2]
[340780834,1729804240407,-500.0,0.00013698,2]
[340780835,1729804240416,-500.0,0.00013698,2]
[340780836,1729804240426,-157.10942893,0.00013698,2]
[340780837,1729804240436,-500.0,0.00013698,2]
[340780838,1729804240447,-500.0,0.00013698,2]
[340780839,1729804240458,-500.0,0.00013698,2]
[340780840,1729804240469,-500.0,0.00013698,2]
[340780841,1729804240479,-500.0,0.00013698,2]
[340780842,1729804240489,-500.0,0.00013698,2]
[340780843,1729804240502,-500.0,0.00013698,2]
[340780844,1729804240513,-353.17675048,0.00013698,2]
[340780845,1729804240523,-500.0,0.00013698,2]
[340780846,1729804240534,-500.0,0.00013698,2]
[340780847,1729804240546,-500.0,0.00013698,2]
[340780848,1729804240555,-500.0,0.00013698,2]
[340780849,1729804240566,-500.0,0.00013698,2]
[340780850,1729804240577,-381.25108579,0.00013698,2]
[340780851,1729804240587,-344.19727994,0.00013698,2]
[340780852,1729804240596,-498.52806949,0.00013698,2]
[340780853,1729804240606,-500.0,0.00013698,2]
[340780854,1729804240616,-500.0,0.00013698,2]
[340780855,1729804240627,-600.90232501,0.00013698,2]
[340780856,1729804240637,-500.0,0.00013698,2]
[340780857,1729804240650,-500.0,0.00013698,2]
[340780858,1729804240667,-500.0,0.00013698,2]
[340780859,1729804240679,-500.0,0.00013698,2]
[340780860,1729804240690,-500.0,0.00013698,2]
[340780861,1729804240702,-561.44923914,0.00013698,2]
[340780862,1729804240712,-300.89049391,0.00013698,2]
[340780863,1729804240723,-232.11165422,0.00013698,2]
[340780864,1729804240733,-500.0,0.00013698,2]
[340780865,1729804240743,-419.38174921,0.00013698,2]
[340780866,1729804240753,-500.0,0.00013698,2]
[340780867,1729804240762,-500.0,0.00013698,2]
[340780868,1729804240771,-500.0,0.00013698,2]
[340780869,1729804240781,-500.0,0.00013698,2]
[340780870,1729804241059,-888.66,0.00013698,2]
[340780871,1729804241069,-500.0,0.00013698,2]
[340780872,1729804241079,-576.40457011,0.00013698,2]
[340780873,1729804241089,-500.0,0.00013698,2]
[340780874,1729804241099,-500.0,0.00013698,2]
[340780875,1729804241108,-565.86678767,0.00013698,2]
[340780876,1729804241118,-903.56,0.00013698,2]
[340780877,1729804241128,-1005.05,0.00013698,2]
[340780878,1729804241138,-623.16,0.00013698,2]
[340780879,1729804241148,-500.0,0.00013698,2]
[340780880,1729804241157,-500.0,0.00013698,2]
[340780881,1729804241167,-500.0,0.00013698,2]
[340780882,1729804241176,-841.71,0.00013698,2]
[340780883,1729804241186,-500.0,0.00013698,2]
[340780884,1729804241196,-500.0,0.00013698,2]